fUSD/lending_fUSD_20250205
["ID","MTS","AMOUNT","RATE_DAILY","PERIOD"]
[351699226,1738755047594,-500.0,9.347e-05,2]
[351699227,1738755047604,-500.0,9.347e-05,2]
[351699228,1738755047614,-500.0,9.347e-05,2]
[351699229,1738755047623,-500.0,9.347e-05,2]
[351699230,1738755047632,-500.0,9.347e-05,2]
[351699231,1738755047642,-524.84,9.347e-05,2]
[351699232,1738755047651,-500.0,9.347e-05,2]
[351699233,1738755047661,-500.0,9.347e-05,2]
[351699234,1738755047670,-907.069838,9.347e-05,2]
[351699235,1738755047680,-314.09,9.347e-05,2]
[351699236,1738755047689,-500.0,9.347e-05,2]
[351699237,1738755047699,-508.74,9.347e-05,2]
[351699238,1738755047709,-500.0,9.347e-05,2]
[351699239,1738755047718,-500.0,9.347e-05,2]
[351699240,1738755047728,-419.41,9.347e-05,2]
[351699241,1738755047738,-500.0,9.347e-05,2]
[351699242,1738755047747,-160.23,9.473e-05,2]
[351699243,1738755047757,-160.23,9.477e-05,2]
[351699244,1738755047767,-160.23,9.481e-05,2]
[351699245,1738755047776,-500.0,9.484e-05,2]
[351699246,1738755047786,-267.54,9.484e-05,2]
[351699247,1738755047795,-500.0,9.484e-05,2]
[351699248,1738755047804,-420.78,9.484e-05,2]
[351699249,1738755047814,-264.26,9.484e-05,2]
[351699250,1738755047824,-500.0,9.484e-05,2]
[351699251,1738755047834,-500.0,9.484e-05,2]
[351699252,1738755047843,-500.0,9.484e-05,2]
[351699253,1738755047852,-565.06,9.484e-05,2]
[351699254,1738755047862,-500.0,9.484e-05,2]
[351699255,1738755047872,-500.0,9.484e-05,2]
[351699256,1738755047881,-500.0,9.484e-05,2]
[351699257,1738755047897,-371.79,9.484e-05,2]
[351699258,1738755047911,-500.0,9.484e-05,2]
[351699259,1738755047921,-907.069838,9.484e-05,2]
[351699260,1738755047930,-533.43,9.484e-05,2]
[351699261,1738755047939,-500.0,9.484e-05,2]
[351699262,1738755047950,-261.05,9.484e-05,2]
[351699263,1738755047961,-500.0,9.484e-05,2]
[351699264,1738755047970,-160.23,9.486e-05,2]
[351699265,1738755047980,-160.23,9.49e-05,2]
[351699266,1738755047989,-160.23,9.494e-05,2]
[351699267,1738755047999,-160.23,9.499e-05,2]
[351699268,1738755048009,-160.23,9.503e-05,2]
[351699269,1738755048019,-160.23,9.507e-05,2]
[351699270,1738755048028,-160.23,9.511e-05,2]
[351699271,1738755048038,-160.23,9.516e-05,2]
[351699272,1738755048047,-160.23,9.52e-05,2]
[351699273,1738755048057,-255.0,9.543e-05,2]
[351699274,1738755048066,-395.68,9.562e-05,2]
[351699275,1738755048076,-500.0,9.621e-05,2]
[351699276,1738755048086,-500.0,9.621e-05,2]
[351699277,1738755048095,-500.0,9.621e-05,2]
[351699278,1738755048104,-500.0,9.621e-05,2]
[351699279,1738755048113,-302.67,9.621e-05,2]
[351699280,1738755048123,-500.0,9.621e-05,2]
[351699281,1738755048133,-500.0,9.621e-05,2]
[351699282,1738755048142,-500.0,9.621e-05,2]
[351699283,1738755048151,-500.0,9.621e-05,2]
[351699284,1738755048161,-174.59,9.621e-05,2]
[351699285,1738755048175,-500.0,9.621e-05,2]
[351699286,1738755048184,-268.67,9.65e-05,2]
[351699287,1738755048193,-1182.921,9.7e-05,2]
[351699288,1738755048204,-1731.0,9.7e-05,2]
[351699289,1738755048214,-500.0,9.758e-05,2]
[351699290,1738755048223,-206.86822077,9.758e-05,2]
[351699291,1738755048233,-500.0,9.758e-05,2]
[351699292,1738755048243,-500.0,9.758e-05,2]
[351699293,1738755048253,-500.0,9.758e-05,2]
[351699294,1738755048263,-500.0,9.758e-05,2]
[351699295,1738755048272,-500.0,9.758e-05,2]
[351699296,1738755048281,-500.0,9.758e-05,2]
[351699297,1738755048291,-602.73,9.758e-05,2]
[351699298,1738755048300,-586.0,9.866e-05,2]
[351699299,1738755048310,-582.21,9.895e-05,2]
[351699300,1738755048319,-427.16,9.895e-05,2]
[351699301,1738755048328,-500.0,9.895e-05,2]
[351699302,1738755048338,-500.0,9.895e-05,2]
[351699303,1738755048347,-500.0,9.895e-05,2]
[351699304,1738755048358,-500.0,9.895e-05,2]
[351699305,1738755048367,-321.89,9.895e-05,2]
[351699306,1738755048377,-3773.142326,9.936e-05,2]
[351699307,1738755048387,-1096.93711094,9.939e-05,2]
[351699308,1738755048397,-1096.93711094,9.94e-05,2]
[351699309,1738755048406,-1096.93711094,9.942e-05,2]
[351699310,1738755048416,-3773.142326,9.943e-05,2]
[351699311,1738755048426,-183996.65912499,9.946e-05,2]
[351699312,1738755048436,-200.0,9.948e-05,2]
[351699313,1738755048445,-1096.93711094,9.951e-05,2]
[351699314,1738755048457,-7621.22388028,9.951e-05,2]
[351699315,1738755048467,-7621.22388028,9.951e-05,2]
[351699316,1738755048477,-7621.22388028,9.956e-05,2]
[351699317,1738755048486,-200.0,9.963e-05,2]
[351699318,1738755048497,-77165.82021275,9.966e-05,2]
[351699319,1738755048514,-508.1826822,9.966e-05,2]
[351699335,1738756095336,285.46,7.967e-05,2]
[351699337,1738756157719,1617.9,7.959e-05,2]
[351699340,1738756231806,-4417.45592631,8.054e-05,2]
[351699341,1738756231914,-19482.54407369,8.054e-05,2]
[351699342,1738756231923,-1500.0,8.085e-05,2]
[351699343,1738756231933,-614.89,8.104e-05,2]
[351699344,1738756231942,-1411.97,8.219e-05,2]
[351699345,1738756231951,-171.45,8.219e-05,2]
[351699346,1738756231961,-250.0,8.219e-05,2]
[351699347,1738756231970,-150.0,8.219e-05,2]
[351699348,1738756231979,-1000.0,8.219e-05,2]
[351699349,1738756231987,-500.0,8.22e-05,2]
[351699350,1738756231996,-724.51,8.248e-05,2]
[351699351,1738756232006,-3381.85,8.323e-05,2]
[351699352,1738756232015,-1840.06,8.588e-05,2]
[351699353,1738756232028,-150.0,8.798e-05,2]
[351699354,1738756232037,-501.57213038,8.799e-05,2]
[351699355,1738756232046,-500.0,8.799e-05,2]
[351699356,1738756232055,-500.0,8.799e-05,2]
[351699357,1738756232065,-500.0,8.799e-05,2]
[351699358,1738756232074,-500.0,8.799e-05,2]
[351699359,1738756232083,-500.0,8.799e-05,2]
[351699360,1738756232092,-502.40912577,8.799e-05,2]
[351699361,1738756232101,-500.0,8.799e-05,2]
[351699362,1738756232110,-500.33240758,8.799e-05,2]
[351699363,1738756232120,-500.0,8.799e-05,2]
[351699364,1738756232129,-500.0,8.799e-05,2]
[351699365,1738756232140,-274.9017122,8.799e-05,2]
[351699366,1738756232152,-225.0982878,8.799e-05,2]
[351699367,1738756232161,-95.19212484,8.799e-05,2]
[351699368,1738756232194,-404.80787516,8.799e-05,2]
[351699369,1738756232205,-500.0,8.799e-05,2]
[351699370,1738756232214,-616.99,8.799e-05,2]
[351699371,1738756232224,-387.45441953,8.799e-05,2]
[351699372,1738756232268,-112.54558047,8.799e-05,2]
[351699373,1738756232284,-553.36242424,8.799e-05,2]
[351699375,1738756232293,-500.0,8.799e-05,2]
[351699376,1738756232303,-500.0,8.799e-05,2]
[351699378,1738756232312,-500.0,8.799e-05,2]
[351699380,1738756232321,-500.0,8.799e-05,2]
[351699382,1738756232331,-500.0,8.799e-05,2]
[351699384,1738756232340,-500.0,8.799e-05,2]
[351699386,1738756232349,-500.0,8.799e-05,2]
[351699388,1738756232358,-500.0,8.799e-05,2]
[351699390,1738756232367,-301.72696342,8.799e-05,2]
[351699392,1738756232376,-500.0,8.799e-05,2]
[351699394,1738756232385,-500.0,8.799e-05,2]
[351699396,1738756232394,-500.0,8.799e-05,2]
[351699397,1738756232403,-500.0,8.799e-05,2]
[351699398,1738756232413,-500.0,8.799e-05,2]
[351699399,1738756232423,-500.0,8.799e-05,2]
[351699400,1738756232433,-548.72378269,8.799e-05,2]
[351699401,1738756232442,-500.0,8.799e-05,2]
[351699402,1738756232452,-253.52117697,8.799e-05,2]
[351699407,1738756237610,-246.47882303,8.799e-05,2]
[351699408,1738756237620,-500.0,8.799e-05,2]
[351699409,1738756237630,-500.0,8.799e-05,2]
[351699410,1738756237640,-500.0,8.799e-05,2]
[351699411,1738756237649,-500.0,8.799e-05,2]
[351699412,1738756237659,-501.30346345,8.799e-05,2]
[351699413,1738756237668,-501.67410754,8.799e-05,2]
[351699414,1738756237678,-500.0,8.799e-05,2]
[351699415,1738756237688,-82.64542827,8.799e-05,2]
[351699416,1738756237726,-326.97111209,8.799e-05,2]
[351699417,1738756237769,-92.58516368,8.799e-05,2]
[351699418,1738756237780,-175.69539035,8.799e-05,2]
[351699419,1738756237877,-380.77460965,8.799e-05,2]
[351699420,1738756237887,-500.0,8.799e-05,2]
[351699421,1738756237896,-500.0,8.799e-05,2]
[351699422,1738756237906,-603.09,8.799e-05,2]
[351699423,1738756237916,-288.28,8.799e-05,2]
[351699424,1738756237926,-500.0,8.799e-05,2]
[351699425,1738756237935,-500.0,8.799e-05,2]
[351699426,1738756237945,-500.0,8.799e-05,2]
[351699427,1738756237956,-501.77110127,8.799e-05,2]
[351699428,1738756237967,-158.07704407,8.799e-05,2]
[351699429,1738756237976,-500.89329744,8.799e-05,2]
[351699430,1738756237986,-345.26676179,8.799e-05,2]
[351699431,1738756237996,-500.0,8.799e-05,2]
[351699432,1738756238006,-500.0,8.799e-05,2]
[351699433,1738756238016,-502.52674025,8.799e-05,2]
[351699434,1738756238031,-501.083739,8.799e-05,2]
[351699436,1738756238042,-500.0,8.799e-05,2]
[351699438,1738756238053,-500.3446329,8.799e-05,2]
[351699440,1738756238064,-500.0,8.799e-05,2]
[351699442,1738756238075,-500.40127209,8.799e-05,2]
[351699444,1738756238086,-500.0,8.799e-05,2]
[351699445,1738756238096,-500.0,8.799e-05,2]
[351699446,1738756238106,-512.32967406,8.799e-05,2]
[351699447,1738756238116,-501.30287982,8.799e-05,2]
[351699449,1738756238126,-502.66749793,8.799e-05,2]
[351699450,1738756238136,-500.0,8.799e-05,2]
[351699452,1738756238146,-500.0,8.799e-05,2]
[351699454,1738756238155,-501.77056661,8.799e-05,2]
[351699455,1738756238165,-500.0,8.799e-05,2]
[351699456,1738756238175,-379.07708629,8.799e-05,2]
[351699457,1738756238185,-500.0,8.799e-05,2]
[351699458,1738756238195,-502.60568887,8.799e-05,2]
[351699459,1738756238205,-500.0,8.799e-05,2]
[351699460,1738756238215,-500.0,8.799e-05,2]
[351699461,1738756238225,-505.43822564,8.799e-05,2]
[351699462,1738756238235,-500.0,8.799e-05,2]
[351699463,1738756238246,-501.53059843,8.799e-05,2]
[351699464,1738756238256,-500.0,8.799e-05,2]
[351699465,1738756238268,-500.0,8.799e-05,2]
[351699466,1738756238278,-500.0,8.799e-05,2]
[351699467,1738756238288,-500.0,8.799e-05,2]
[351699468,1738756238297,-500.0,8.799e-05,2]
[351699469,1738756238307,-500.0,8.799e-05,2]
[351699470,1738756238317,-500.0,8.799e-05,2]
[351699471,1738756238329,-506.73946594,8.799e-05,2]
[351699472,1738756238339,-488.37852096,8.799e-05,2]
[351699473,1738756238349,-515.82880127,8.799e-05,2]
[351699474,1738756238359,-624.12495579,8.799e-05,2]
[351699475,1738756238373,-502.14812823,8.799e-05,2]
[351699476,1738756238389,-589.62750801,8.799e-05,2]
[351699477,1738756238399,-500.0,8.799e-05,2]
[351699478,1738756238409,-511.95130235,8.799e-05,2]
[351699479,1738756238419,-500.0,8.799e-05,2]
[351699480,1738756238430,-501.15267408,8.799e-05,2]
[351699481,1738756238440,-500.0,8.799e-05,2]
[351699482,1738756238450,-501.4630943,8.799e-05,2]
[351699483,1738756238459,-502.4477943,8.799e-05,2]
[351699484,1738756238469,-500.0,8.799e-05,2]
[351699485,1738756238479,-523.35278119,8.799e-05,2]
[351699486,1738756238489,-609.3,8.799e-05,2]
[351699487,1738756238500,-437.70835633,8.799e-05,2]
[351699488,1738756238513,-500.0,8.799e-05,2]
[351699489,1738756238524,-500.0,8.799e-05,2]
[351699490,1738756238534,-500.0,8.799e-05,2]
[351699491,1738756238544,-500.0,8.799e-05,2]
[351699492,1738756238554,-501.07216961,8.799e-05,2]
[351699493,1738756238564,-500.0,8.799e-05,2]
[351699494,1738756238574,-500.0,8.799e-05,2]
[351699495,1738756238586,-504.84488505,8.799e-05,2]
[351699496,1738756238596,-501.77168394,8.799e-05,2]
[351699497,1738756238606,-500.0,8.799e-05,2]
[351699498,1738756238617,-634.98297254,8.799e-05,2]
[351699499,1738756238627,-500.0,8.799e-05,2]
[351699500,1738756238637,-526.19,8.799e-05,2]
[351699501,1738756238646,-500.0,8.799e-05,2]
[351699502,1738756238656,-491.88,8.799e-05,2]
[351699503,1738756238666,-507.33786608,8.799e-05,2]
[351699504,1738756238676,-500.0,8.799e-05,2]
[351699505,1738756238687,-581.14,8.799e-05,2]
[351699506,1738756238696,-500.0,8.799e-05,2]
[351699507,1738756238706,-526.47966777,8.799e-05,2]
[351699508,1738756238715,-500.0,8.799e-05,2]
[351699509,1738756238729,-156.45104531,8.799e-05,2]
[351699510,1738756238739,-565.55,8.799e-05,2]
[351699511,1738756238748,-343.45,8.799e-05,2]
[351699512,1738756238758,-382.66,8.799e-05,2]
[351699513,1738756238767,-500.0,8.799e-05,2]
[351699514,1738756238779,-500.0,8.799e-05,2]
[351699515,1738756238788,-500.0,8.799e-05,2]
[351699516,1738756238798,-500.0,8.799e-05,2]
[351699517,1738756238809,-500.0,8.799e-05,2]
[351699518,1738756238819,-360.54,8.799e-05,2]
[351699519,1738756238830,-192.23218378,8.799e-05,2]
[351699520,1738756238840,-500.0,8.799e-05,2]
[351699521,1738756238849,-500.0,8.799e-05,2]
[351699522,1738756238860,-500.0,8.799e-05,2]
[351699523,1738756238871,-390.2,8.799e-05,2]
[351699524,1738756238881,-500.0,8.799e-05,2]
[351699525,1738756238892,-183.87432132,8.799e-05,2]
[351699526,1738756238902,-500.0,8.799e-05,2]
[351699527,1738756238912,-500.0,8.799e-05,2]
[351699528,1738756238922,-500.0,8.799e-05,2]
[351699529,1738756238932,-500.0,8.799e-05,2]
[351699530,1738756238941,-500.0,8.799e-05,2]
[351699531,1738756238951,-500.0,8.799e-05,2]
[351699532,1738756238961,-355.65014134,8.799e-05,2]
[351699533,1738756238971,-500.0,8.799e-05,2]
[351699534,1738756238981,-500.0,8.799e-05,2]
[351699535,1738756238991,-500.0,8.799e-05,2]
[351699536,1738756239001,-460.21,8.799e-05,2]
[351699537,1738756239011,-500.0,8.799e-05,2]
[351699538,1738756239021,-500.0,8.799e-05,2]
[351699539,1738756239033,-500.0,8.799e-05,2]
[351699540,1738756239043,-240.38,8.799e-05,2]
[351699541,1738756239052,-511.34510404,8.799e-05,2]
[351699542,1738756239061,-500.0,8.799e-05,2]
[351699543,1738756239071,-500.0,8.799e-05,2]
[351699544,1738756239081,-500.0,8.799e-05,2]
[351699545,1738756239091,-500.0,8.799e-05,2]
[351699546,1738756239101,-500.0,8.799e-05,2]
[351699547,1738756239111,-500.0,8.799e-05,2]
[351699548,1738756239120,-265.23,8.799e-05,2]
[351699549,1738756239133,-500.0,8.799e-05,2]
[351699550,1738756239143,-502.00991171,8.799e-05,2]
[351699551,1738756239152,-500.0,8.799e-05,2]
[351699552,1738756239162,-500.0,8.799e-05,2]
[351699553,1738756239171,-500.0,8.799e-05,2]
[351699554,1738756239181,-500.0,8.799e-05,2]
[351699555,1738756239192,-500.0,8.799e-05,2]
[351699556,1738756239201,-500.0,8.799e-05,2]
[351699557,1738756239210,-500.0,8.799e-05,2]
[351699558,1738756239220,-241.0,8.799e-05,2]
[351699559,1738756239229,-500.0,8.799e-05,2]
[351699560,1738756239238,-500.0,8.799e-05,2]
[351699561,1738756239247,-500.0,8.799e-05,2]
[351699562,1738756239257,-500.0,8.799e-05,2]
[351699563,1738756239266,-500.0,8.799e-05,2]
[351699564,1738756239275,-500.0,8.799e-05,2]
[351699565,1738756239285,-500.0,8.799e-05,2]
[351699566,1738756239294,-230.54,8.799e-05,2]
[351699567,1738756239304,-500.0,8.799e-05,2]
[351699568,1738756239313,-430.49,8.799e-05,2]
[351699569,1738756239323,-646.36,8.799e-05,2]
[351699570,1738756239332,-500.0,8.799e-05,2]
[351699571,1738756239342,-500.0,8.799e-05,2]
[351699572,1738756239353,-500.0,8.799e-05,2]
[351699573,1738756239362,-500.0,8.799e-05,2]
[351699574,1738756239372,-500.0,8.799e-05,2]
[351699575,1738756239382,-522.9145,8.799e-05,2]
[351699576,1738756239391,-500.0,8.799e-05,2]
[351699578,1738756239700,-500.0,8.799e-05,2]
[351699579,1738756239717,-500.0,8.799e-05,2]
[351699580,1738756239737,-500.0,8.799e-05,2]
[351699581,1738756239758,-500.0,8.835e-05,2]
[351699582,1738756239769,-572.71965878,8.835e-05,2]
[351699583,1738756239779,-500.0,8.835e-05,2]
[351699584,1738756239789,-500.0,8.835e-05,2]
[351699585,1738756239799,-502.04558566,8.835e-05,2]
[351699586,1738756239808,-500.0,8.835e-05,2]
[351699587,1738756239817,-500.0,8.835e-05,2]
[351699588,1738756239827,-500.0,8.835e-05,2]
[351699589,1738756239837,-500.0,8.835e-05,2]
[351699590,1738756239846,-500.0,8.835e-05,2]
[351699591,1738756239855,-500.0,8.835e-05,2]
[351699592,1738756239865,-500.0,8.835e-05,2]
[351699593,1738756239875,-564.15,8.835e-05,2]
[351699594,1738756239884,-500.0,8.835e-05,2]
[351699595,1738756239894,-502.10113494,8.835e-05,2]
[351699596,1738756239904,-500.0,8.835e-05,2]
[351699597,1738756239914,-500.0,8.835e-05,2]
[351699598,1738756239923,-500.0,8.835e-05,2]
[351699599,1738756239933,-301.99530203,8.835e-05,2]
[351699600,1738756239942,-500.60998913,8.835e-05,2]
[351699601,1738756239951,-500.0,8.835e-05,2]
[351699602,1738756239960,-500.0,8.835e-05,2]
[351699603,1738756239970,-500.0,8.835e-05,2]
[351699604,1738756239979,-500.0,8.835e-05,2]
[351699605,1738756239988,-500.0,8.835e-05,2]
[351699606,1738756239998,-500.0,8.835e-05,2]
[351699607,1738756240007,-373.94730101,8.835e-05,2]
[351699608,1738756240017,-500.0,8.835e-05,2]
[351699609,1738756240027,-500.0,8.835e-05,2]
[351699610,1738756240037,-500.0,8.835e-05,2]
[351699611,1738756240046,-500.0,8.835e-05,2]
[351699612,1738756240055,-500.0,8.835e-05,2]
[351699613,1738756240064,-500.0,8.835e-05,2]
[351699614,1738756240074,-500.0,8.835e-05,2]
[351699615,1738756240083,-500.0,8.835e-05,2]
[351699616,1738756240092,-500.0,8.835e-05,2]
[351699618,1738756240102,-459.00798369,8.835e-05,2]
[351699620,1738756240111,-500.0,8.835e-05,2]
[351699622,1738756240121,-500.0,8.835e-05,2]
[351699624,1738756240130,-500.0,8.835e-05,2]
[351699626,1738756240140,-500.0,8.835e-05,2]
[351699628,1738756240149,-500.0,8.835e-05,2]
[351699630,1738756240159,-501.65031139,8.835e-05,2]
[351699632,1738756240168,-503.14598649,8.835e-05,2]
[351699633,1738756240177,-500.0,8.835e-05,2]
[351699635,1738756240186,-500.0,8.835e-05,2]
[351699637,1738756240195,-500.0,8.835e-05,2]
[351699638,1738756240204,-500.0,8.835e-05,2]
[351699640,1738756240213,-500.0,8.835e-05,2]
[351699641,1738756240223,-500.0,8.835e-05,2]
[351699643,1738756240232,-500.0,8.835e-05,2]
[351699645,1738756240242,-500.0,8.835e-05,2]
[351699646,1738756240251,-500.0,8.835e-05,2]
[351699648,1738756240260,-500.0,8.835e-05,2]
[351699649,1738756240269,-500.0,8.835e-05,2]
[351699651,1738756240280,-500.0,8.835e-05,2]
[351699653,1738756240289,-500.0,8.835e-05,2]
[351699654,1738756240298,-500.0,8.835e-05,2]
[351699656,1738756240307,-500.0,8.835e-05,2]
[351699657,1738756240316,-500.0,8.835e-05,2]
[351699659,1738756240325,-500.88483707,8.835e-05,2]
[351699661,1738756240336,-500.0,8.835e-05,2]
[351699662,1738756240345,-500.0,8.835e-05,2]
[351699664,1738756240354,-501.71164329,8.835e-05,2]
[351699665,1738756240364,-502.67241964,8.835e-05,2]
[351699667,1738756240373,-500.0,8.835e-05,2]
[351699669,1738756240383,-500.0,8.835e-05,2]
[351699670,1738756240392,-500.0,8.835e-05,2]
[351699672,1738756240401,-500.0,8.835e-05,2]
[351699673,1738756240411,-500.0,8.835e-05,2]
[351699675,1738756240421,-500.0,8.835e-05,2]
[351699677,1738756240431,-500.0,8.835e-05,2]
[351699679,1738756240440,-500.0,8.835e-05,2]
[351699680,1738756240450,-501.95167511,8.835e-05,2]
[351699682,1738756240460,-349.37880547,8.835e-05,2]
[351699684,1738756240476,-152.86697167,8.835e-05,2]
[351699686,1738756240485,-584.39793254,8.835e-05,2]
[351699687,1738756240495,-302.32409672,8.835e-05,2]
[351699689,1738756240509,-197.67590328,8.835e-05,2]
[351699691,1738756240520,-500.0,8.835e-05,2]
[351699693,1738756240530,-500.0,8.835e-05,2]
[351699694,1738756240539,-500.0,8.835e-05,2]
[351699696,1738756240550,-500.0,8.835e-05,2]
[351699698,1738756240559,-156.32062689,8.835e-05,2]
[351699699,1738756240568,-500.0,8.835e-05,2]
[351699701,1738756240577,-501.07107932,8.835e-05,2]
[351699703,1738756240589,-500.0,8.835e-05,2]
[351699705,1738756240600,-500.0,8.835e-05,2]
[351699707,1738756240609,-500.0,8.835e-05,2]
[351699708,1738756240619,-500.0,8.835e-05,2]
[351699710,1738756240627,-500.0,8.835e-05,2]
[351699712,1738756240637,-500.0,8.835e-05,2]
[351699713,1738756240646,-500.0,8.835e-05,2]
[351699715,1738756240655,-500.0,8.835e-05,2]
[351699717,1738756240665,-500.0,8.835e-05,2]
[351699719,1738756240675,-500.0,8.835e-05,2]
[351699720,1738756240684,-500.0,8.835e-05,2]
[351699722,1738756240694,-500.0,8.835e-05,2]
[351699724,1738756240704,-500.0,8.835e-05,2]
[351699726,1738756240714,-500.0,8.835e-05,2]
[351699727,1738756240724,-500.0,8.835e-05,2]
[351699729,1738756240734,-500.0,8.835e-05,2]
[351699731,1738756240744,-500.0,8.835e-05,2]
[351699733,1738756240753,-500.0,8.835e-05,2]
[351699734,1738756240762,-500.0,8.835e-05,2]
[351699736,1738756240771,-500.0,8.835e-05,2]
[351699738,1738756240782,-500.0,8.835e-05,2]
[351699739,1738756240791,-500.0,8.835e-05,2]
[351699741,1738756240800,-500.0,8.835e-05,2]
[351699743,1738756240809,-500.0,8.835e-05,2]
[351699744,1738756240818,-500.0,8.835e-05,2]
[351699746,1738756240827,-500.0,8.835e-05,2]
[351699748,1738756240836,-500.0,8.835e-05,2]
[351699750,1738756240845,-505.41688849,8.835e-05,2]
[351699751,1738756240855,-500.0,8.835e-05,2]
[351699753,1738756240864,-500.0,8.835e-05,2]
[351699755,1738756240873,-500.0,8.835e-05,2]
[351699756,1738756240885,-502.08198673,8.835e-05,2]
[351699758,1738756240896,-500.81708002,8.835e-05,2]
[351699760,1738756240905,-500.0,8.835e-05,2]
[351699762,1738756240914,-500.8497051,8.835e-05,2]
[351699763,1738756240924,-500.0,8.835e-05,2]
[351699765,1738756240933,-500.0,8.835e-05,2]
[351699767,1738756240943,-500.0,8.835e-05,2]
[351699768,1738756240952,-500.0,8.835e-05,2]
[351699770,1738756240962,-500.0,8.835e-05,2]
[351699772,1738756240971,-500.0,8.835e-05,2]
[351699774,1738756240980,-500.0,8.835e-05,2]
[351699775,1738756240990,-500.0,8.835e-05,2]
[351699777,1738756240999,-500.0,8.835e-05,2]
[351699779,1738756241010,-500.0,8.835e-05,2]
[351699780,1738756241019,-500.0,8.835e-05,2]
[351699782,1738756241029,-500.0,8.835e-05,2]
[351699784,1738756241039,-500.0,8.835e-05,2]
[351699786,1738756241048,-507.47488262,8.835e-05,2]
[351699787,1738756241058,-945.86625379,8.835e-05,2]
[351699789,1738756241070,-721.09374621,8.835e-05,2]
[351699791,1738756241080,-500.0,8.835e-05,2]
[351699793,1738756241089,-500.0,8.835e-05,2]
[351699794,1738756241098,-500.0,8.835e-05,2]
[351699796,1738756241108,-500.0,8.835e-05,2]
[351699797,1738756241117,-500.0,8.835e-05,2]
[351699798,1738756241127,-500.0,8.835e-05,2]
[351699799,1738756241137,-500.0,8.835e-05,2]
[351699800,1738756241146,-500.0,8.835e-05,2]
[351699801,1738756241156,-500.0,8.835e-05,2]
[351699802,1738756241165,-500.0,8.835e-05,2]
[351699803,1738756241174,-500.0,8.835e-05,2]
[351699804,1738756241184,-500.0,8.835e-05,2]
[351699805,1738756241194,-500.0,8.835e-05,2]
[351699806,1738756241204,-500.0,8.835e-05,2]
[351699807,1738756241214,-500.0,8.835e-05,2]
[351699808,1738756241223,-500.0,8.835e-05,2]
[351699809,1738756241233,-501.74991535,8.835e-05,2]
[351699810,1738756241242,-500.0,8.835e-05,2]
[351699811,1738756241253,-500.0,8.835e-05,2]
[351699812,1738756241262,-500.0,8.835e-05,2]
[351699813,1738756241272,-500.0,8.835e-05,2]
[351699814,1738756241282,-500.0,8.835e-05,2]
[351699815,1738756241291,-500.0,8.835e-05,2]
[351699816,1738756241300,-500.0,8.835e-05,2]
[351699817,1738756241309,-500.0,8.835e-05,2]
[351699818,1738756241319,-500.0,8.835e-05,2]
[351699819,1738756241328,-500.0,8.835e-05,2]
[351699820,1738756241338,-500.0,8.835e-05,2]
[351699821,1738756241347,-500.0,8.835e-05,2]
[351699822,1738756241358,-500.0,8.835e-05,2]
[351699823,1738756241373,-500.0,8.835e-05,2]
[351699824,1738756241382,-500.0,8.835e-05,2]
[351699825,1738756241391,-500.0,8.835e-05,2]
[351699826,1738756241400,-500.0,8.835e-05,2]
[351699827,1738756241410,-500.0,8.835e-05,2]
[351699828,1738756241419,-500.0,8.835e-05,2]
[351699829,1738756241429,-500.0,8.835e-05,2]
[351699830,1738756241440,-500.0,8.835e-05,2]
[351699831,1738756241450,-501.92551702,8.835e-05,2]
[351699832,1738756241459,-501.50213535,8.835e-05,2]
[351699833,1738756241469,-515.34636687,8.835e-05,2]
[351699834,1738756241478,-500.0,8.835e-05,2]
[351699835,1738756241488,-500.0,8.835e-05,2]
[351699836,1738756241498,-500.0,8.835e-05,2]
[351699837,1738756241509,-500.0,8.835e-05,2]
[351699838,1738756241518,-500.0,8.835e-05,2]
[351699839,1738756241529,-500.0,8.835e-05,2]
[351699840,1738756241539,-500.0,8.835e-05,2]
[351699841,1738756241548,-493.90890279,8.835e-05,2]
[351699842,1738756241559,-500.0,8.835e-05,2]